Cogmind - Beta 13 @@@ ROGUE MODE // 2024.04.01 @ 21:07:55 Player: Toa of Guts Result: Self-destructed Performance ------------- Evolutions (2) 1000 Regions Visited (4) 800 Robots Destroyed (18) 90 Value Destroyed (583) 583 Prototype IDs (0) 0 Alien Tech Used (0) 0 Bonus (0) 0 TOTAL SCORE: 2473 Bonus ------- None Cogmind --------- Core Integrity 276/550 Matter 300/300 Energy 73/100 System Corruption 0% Temperature Cool (0) Movement Treading (160) Location -8/Storage Parts ------- > --- POWER (1) -------- (None) > --- PROPULSION (4) --- Improved Treads > --- UTILITY (4) ------ Improved Heat Sink > --- WEAPON (2) ------- Field Laser > --- INVENTORY (5) ---- (None) Peak State ------------ > --- POWER ------------ Ion Engine > --- PROPULSION ------- Improved Treads Improved Treads Improved Treads Improved Treads > --- UTILITY ---------- Improved Heat Sink Small Storage Unit Hardened Medium Armor Plating Hardened Medium Armor Plating > --- WEAPON ----------- Field Laser Field Laser > --- INVENTORY -------- Ion Engine Light Nuclear Core Field Laser Field Laser [Rating: 26] Favorites ----------- Power Ion Engine Engine Ion Engine Power Core Light Nuclear Core Propulsion Aluminum Leg Treads Improved Treads Leg Aluminum Leg Wheel Wheel Utility Small Storage Unit Device Improved Heat Sink Storage Small Storage Unit Protection Hardened Medium Armor Plating Weapon Field Laser Energy Gun Field Laser Ballistic Gun Assault Rifle Build | -11 -10 -9 -8 -8 ------- Run | Yrd Mat Mat Mat Sto Slots Evolved 4 | . . 2 2 . Power . | . . . . . Propulsion 2 | . . 1 1 . Utility 2 | . . 1 1 . Weapon . | . . . . . Parts Attached 31 | 8 3 11 7 2 Power 4 | 1 . 1 1 1 Engine 3 | 1 . 1 . 1 Core 1 | . . . 1 . Reactor . | . . . . . Propulsion 10 | 4 . 2 4 . Treads 5 | . . 1 4 . Leg 3 | 2 . 1 . . Wheel 2 | 2 . . . . Hover . | . . . . . Flight . | . . . . . Utility 8 | 1 1 5 1 . Device 2 | . 1 . 1 . Storage 1 | 1 . . . . Processor . | . . . . . Hackware . | . . . . . Protection 5 | . . 5 . . Artifact . | . . . . . Weapon 9 | 2 2 3 1 1 Energy Gun 5 | . 1 2 1 1 Energy Cannon . | . . . . . Ballistic Gun 4 | 2 1 1 . . Ballistic Cannon . | . . . . . Launcher . | . . . . . Special Weapon . | . . . . . Impact Weapon . | . . . . . Slashing Weapon . | . . . . . Piercing Weapon . | . . . . . Special Melee Weapon . | . . . . . Unidentified Prototypes . | . . . . . Parts Lost 12 | . . . 11 1 Power 3 | . . . 2 1 Propulsion 4 | . . . 4 . Utility 3 | . . . 3 . Weapon 2 | . . . 2 . Highest Loss Streak 6 | . . . 6 1 To Critical Strikes . | . . . . . Average Slot Usage (%) 81 | . 86 99 79 34 Engine 9 | . 14 11 6 7 Treads 5 | . . . 12 9 Leg 21 | . 28 32 15 . Device 4 | . 1 6 3 9 Storage 9 | . 14 11 9 . Protection 9 | . . 14 14 . Energy Gun 13 | . 11 13 16 9 Ballistic Gun 6 | . 16 8 . . Naked Turns . | . . . . . Heaviest Build 33 | 13 15 32 33 9 Greatest Support 92 | 26 20 33 92 23 Greatest Overweight (x) . | . . . . . Average Overweight (x) . | . . . . . Largest Inventory Capacity 8 | 8 8 8 8 5 Average Capacity 7 | 6 8 8 7 5 Most Carried 8 | 7 8 8 7 1 Average Carried 5 | 4 6 7 5 . Final Capacity 8 | 8 8 8 5 5 Final Carried 7 | 6 7 7 2 . Class Distribution -------------------- 100% | Mutant Dominant Class ---------------- Mutant | -10/Materials Mutant | -9/Materials Mutant | -8/Materials Mutant | -8/Storage Resources | -11 -10 -9 -8 -8 ----------- Run | Yrd Mat Mat Mat Sto Matter Collected 575 | 195 35 240 85 20 Remotely . | . . . . . Salvage Created 650 | . 35 244 271 100 Parts 33 | . 5 19 9 . Haulers Intercepted . | . . . . . Recyclers Shooed . | . . . . . Parts Field Recycled . | . . . . . Retrieved Matter . | . . . . . Parts Self-Destructed . | . . . . . Prevented . | . . . . . Kills | -11 -10 -9 -8 -8 ------- Run | Yrd Mat Mat Mat Sto Combat Hostiles Destroyed 18 | . 3 8 5 2 Guns 18 | . 3 8 5 2 Classes Destroyed 3 | . 1 2 . . Swarmer 6 | . 3 3 . . Grunt 11 | . . 4 5 2 Sentry 1 | . . 1 . . Best Kill Streak 4 | . 3 4 2 1 Combat Bots Only 4 | . 3 4 2 1 Max Kills in Single Turn 1 | . 1 1 1 1 Gunslinging . | . . . . . Exploded . | . . . . . Melee . | . . . . . Uniques/NPCs Destroyed . | . . . . . Combat | -11 -10 -9 -8 -8 -------- Run | Yrd Mat Mat Mat Sto Hostile Shots Fired 168 | . 16 41 83 28 Missed 48 | . 5 11 23 9 Damage Taken 2373 | . 91 333 1603 346 Core 328 | . 25 29 128 146 Absorbed by Shields . | . . . . . Core Remaining (%) 94 | 100 90 92 . . Volleys Fired 77 | . 7 23 34 13 Largest 2 | . 2 2 2 1 Hottest 126 | . 70 73 126 63 Shots Fired 118 | . 14 46 45 13 Gun 118 | . 14 46 45 13 Cannon . | . . . . . Launcher . | . . . . . Special . | . . . . . Kinetic 30 | . 7 23 . . Thermal 88 | . 7 23 45 13 Explosive . | . . . . . Electromagnetic . | . . . . . Robot Hit Streak 14 | . 4 14 9 9 Robot Miss Streak 4 | . 2 2 4 2 Penetration Max . | . . . . . Secondary Targets 3 | . . 2 1 . Max Gunslinging Chain 1 | . . 1 1 . Shots Hit Robots 86 | . 7 34 35 10 Core Hits 35 | . 3 13 15 4 Critical Kills . | . . . . . Critical Parts Destroyed . | . . . . . Critical Strikes 2 | . 1 1 . . Burn 2 | . 1 1 . . Melee Attacks . | . . . . . Impact . | . . . . . Slashing . | . . . . . Piercing . | . . . . . Sneak Attacks . | . . . . . Combat Hostiles . | . . . . . Follow-up Attacks . | . . . . . Damage Inflicted 1305 | . 88 430 616 171 Guns 1305 | . 88 430 616 171 Cannons . | . . . . . Explosions . | . . . . . Melee . | . . . . . Ramming . | . . . . . Kinetic 217 | . 26 191 . . Thermal 1088 | . 62 239 616 171 Explosive . | . . . . . Electromagnetic . | . . . . . Impact . | . . . . . Slashing . | . . . . . Piercing . | . . . . . Highest Corruption 2 | . . 2 . . Average Corruption 2 | . . 2 . . Corruption Purged . | . . . . . Corruption Blocked . | . . . . . Effects 1 | . . 1 . . Heat Flow Errors 1 | . . 1 . . Overload Shots . | . . . . . Overflow Damage . | . . . . . Projectiles . | . . . . . Explosions . | . . . . . Melee . | . . . . . Knockbacks . | . . . . . Impact . | . . . . . Kinetic . | . . . . . Secondary . | . . . . . Self-Inflicted Damage . | . . . . . Shots . | . . . . . Rammed . | . . . . . Targets Rammed . | . . . . . Kicked . | . . . . . Crushed . | . . . . . Highest Temperature 446 | . 63 232 446 13 Average Temperature 135 | . 32 61 215 13 Received Heat Transfer 636 | . . 96 405 135 Effects 6 | . . . 6 . Shutdowns 1 | . . . 1 . Energy Bleed 2 | . . . 2 . Interference 1 | . . . 1 . Damage (minor) 1 | . . . 1 . Damage (major) 1 | . . . 1 . Siege Activations . | . . . . . Robots Corrupted . | . . . . . Combat Hostiles . | . . . . . Parts Fried . | . . . . . Impact Corruptions . | . . . . . Robots Melted . | . . . . . Combat Hostiles . | . . . . . Parts Melted 12 | . 1 4 6 1 Heat Transferred 2738 | . 259 777 1332 370 Parts Sabotaged . | . . . . . Parts Stolen . | . . . . . Parts Stripped . | . . . . . Power Chain Reactions . | . . . . . Alert | -11 -10 -9 -8 -8 ------- Run | Yrd Mat Mat Mat Sto Peak Influence 290 | . 71 290 142 83 Initial 38 | . . 29 37 38 Average 88 | . 17 172 77 48 Maximum Alert Level 1 | . . 1 . . Low Security (%) 85 | 100 100 55 100 100 Level 1 14 | . . 44 . . Level 2 . | . . . . . Level 3 . | . . . . . Level 4 . | . . . . . Level 5 . | . . . . . High Security . | . . . . . Max Security . | . . . . . Squads Dispatched 3 | . . 2 1 . Investigation . | . . . . . Extermination . | . . . . . Reinforcement 3 | . . 2 1 . Assault . | . . . . . Garrison . | . . . . . Intercept . | . . . . . Searches Triggered . | . . . . . Construction Impeded . | . . . . . Haulers Reinforced . | . . . . . Active Scanning Responses . | . . . . . Cargo Convoy Interrupts . | . . . . . Stealth | -11 -10 -9 -8 -8 --------- Run | Yrd Mat Mat Mat Sto Distress Signals 3 | . . 2 1 . Communications Jammed . | . . . . . Distress Signals . | . . . . . Times Spotted 29 | . 3 11 9 6 Peak Tracking Total 5 | . 3 5 3 5 Tactical Retreats 2 | . . . 2 . Traps | -11 -10 -9 -8 -8 ------- Run | Yrd Mat Mat Mat Sto Traps Triggered 2 | . . 1 . 1 Indirectly . | . . . . . Trap Hack Attempts . | . . . . . Triggered . | . . . . . Disarmed . | . . . . . Reprogrammed . | . . . . . Reused . | . . . . . Traps Extracted . | . . . . . Installed . | . . . . . Triggered . | . . . . . Machines | -11 -10 -9 -8 -8 ---------- Run | Yrd Mat Mat Mat Sto Machines Disabled 1 | . . . 1 . Max in Single Turn 1 | . . . 1 . Machines Repaired . | . . . . . Machines Dismantled . | . . . . . Machines Sabotaged . | . . . . . Overloaded Fab Kills . | . . . . . Hacking | -11 -10 -9 -8 -8 --------- Run | Yrd Mat Mat Mat Sto Machines Accessed . | . . . . . Terminals . | . . . . . Fabricators . | . . . . . Repair Stations . | . . . . . Recycling Units . | . . . . . Scanalyzers . | . . . . . Garrison Access . | . . . . . Total Hacks . | . . . . . Successful . | . . . . . Failed . | . . . . . Catastrophic . | . . . . . Database Lockouts . | . . . . . Manual . | . . . . . Terminals . | . . . . . Fabricators . | . . . . . Repair Stations . | . . . . . Recycling Units . | . . . . . Scanalyzers . | . . . . . Garrison Access . | . . . . . Terminal Hacks . | . . . . . Fabricator Hacks . | . . . . . Repair Station Hacks . | . . . . . Recycling Unit Hacks . | . . . . . Scanalyzer . | . . . . . Garrison Access Hacks . | . . . . . Unauthorized Hacks . | . . . . . Terminals . | . . . . . Fabricators . | . . . . . Repair Stations . | . . . . . Recycling Units . | . . . . . Scanalyzers . | . . . . . Garrison Access . | . . . . . Data Cores Recovered . | . . . . . Used . | . . . . . Hacking Detections . | . . . . . Full Trace Events . | . . . . . Feedback Events . | . . . . . Feedback Blocked . | . . . . . Robot Schematics Acquired . | . . . . . Robots Built . | . . . . . Authchips . | . . . . . Time . | . . . . . Total Robot Build Rating . | . . . . . Part Schematics Acquired . | . . . . . Parts Built . | . . . . . Authchips . | . . . . . Time . | . . . . . Total Part Build Rating . | . . . . . Parts Repaired . | . . . . . Time . | . . . . . Parts Recycled . | . . . . . Recycled Matter . | . . . . . Retrieved Matter . | . . . . . Retrieved Components . | . . . . . Parts Scanalyzed . | . . . . . Part Schematics Acquired . | . . . . . Parts Damaged . | . . . . . Bothacking | -11 -10 -9 -8 -8 ------------ Run | Yrd Mat Mat Mat Sto Used RIF Installer . | . . . . . Robots Hacked . | . . . . . Non-combat . | . . . . . Combat . | . . . . . Robot Hacks Applied . | . . . . . Relay Couplers Released . | . . . . . Fabnet Peak Effective % . | . . . . . Robots Rewired . | . . . . . Allies Hacked . | . . . . . Hacks Repelled . | . . . . . Allies | -11 -10 -9 -8 -8 -------- Run | Yrd Mat Mat Mat Sto Total Allies . | . . . . . Largest Group . | . . . . . Highest-Rated Group . | . . . . . Highest-Rated Ally . | . . . . . Total Orders . | . . . . . Ally Attacks . | . . . . . Total Damage . | . . . . . Kills . | . . . . . Allies Corrupted . | . . . . . Allies Melted . | . . . . . Intel | -11 -10 -9 -8 -8 ------- Run | Yrd Mat Mat Mat Sto Robot Analysis Total . | . . . . . Derelict Logs Recovered . | . . . . . Drone Launches . | . . . . . Drone Recoveries . | . . . . . Exploration | -11 -10 -9 -8 -8 ------------- Run | Yrd Mat Mat Mat Sto Turns Passed 1303 | 58 264 421 394 166 Spaces Moved 636 | 40 183 238 90 85 Core 3 | 3 . . . . Treads 141 | . . . 56 85 Legs 471 | 16 183 238 34 . Wheels 21 | 21 . . . . Hover . | . . . . . Flight . | . . . . . Fastest Speed 50 | 50 120 120 120 160 Average Speed 127 | 98 120 120 144 160 Slowest Speed 160 | 120 120 120 160 160 Overloaded Moves . | . . . . . Propulsion Burnouts . | . . . . . Robots Hopped . | . . . . . Cave-ins Triggered . | . . . . . Exploration Rate (%) 14 | 3 22 24 8 15 Regions Visited 4 Branch Regions 1 Pre-discovered Areas . | . . . . . Known Exits Taken . | . . . . . Unknown Exits Taken 4 | 1 1 1 1 . Scrap Searched . | . . . . . Spaces Dug . | . . . . . Terrain Destroyed . | . . . . . Melee . | . . . . . Projectile . | . . . . . AOE . | . . . . . Terrain Rammed . | . . . . . Walls Destroyed . | . . . . . Machines Disabled . | . . . . . Actions | -11 -10 -9 -8 -8 --------- Run | Yrd Mat Mat Mat Sto Total 1014 | 56 216 330 310 102 Wait 225 | . 6 41 176 2 Move 632 | 39 182 237 89 85 Hop . | . . . . . Pick Up 29 | 9 10 8 2 . Fast Attach 4 | 3 . 1 . . Attach 17 | 3 1 4 7 2 Detach 1 | . . 1 . . Swap 10 | 2 2 6 . . Drop 19 | . 8 9 2 . Fire 77 | . 7 23 34 13 Melee . | . . . . . Ram . | . . . . . Kick . | . . . . . Crush . | . . . . . Escape Stasis . | . . . . . Rewire . | . . . . . Trap . | . . . . . Miscellaneous . | . . . . . Route ------- -11/Scrapyard -10/Materials -9/Materials -8/Materials -8/Storage History --------- Turn | Location | Event 2 | -11/Scrapyard | Met Revision 17 16 | -11/Scrapyard | Discovered new exit (range 15) 59 | -11/Scrapyard | Entered Materials 143 | -10/Materials | Discovered new exit (range 16) 312 | -10/Materials | Build established: Mutant 323 | -10/Materials | Entered another Materials area 323 | -9/Materials | Evolved 2 slots: Propulsion x1, Utility x1 643 | -9/Materials | Discovered new exit (range 7) 744 | -9/Materials | Entered another Materials area 744 | -8/Materials | Evolved 2 slots: Propulsion x1, Utility x1 1022 | -8/Materials | Discovered new exit (range 15) 1118 | -8/Materials | Lost 6 parts (1p2n2u1w) 1138 | -8/Materials | Entered Storage 1165 | -8/Storage | Lost 4 parts (1p1n1u1w) 1304 | -8/Storage | Self-destructed Last Messages --------------- U-05 Engineer builds a Wall. Field Laser destroyed. Critical hit (Blast). Penetrated by Slug. Lgt. Nuclear Core destroyed. Sml. Storage Unit destroyed. LOCATION=UNKNOWN GOAL=ESCAPE Triggered Explosive Trap. An explosion rips through the floor. The unstable cave ceiling collapses. U-05 Engineer lays Concrete. U-05 Engineer builds a Wall. G-47 Trooper destroyed. Acquired 20 matter. Ion Engine destroyed. Aluminum Leg melted. G-47 Trooper destroyed. K-01 Serf collects debris. Critical hit (Burn: +37). Map ----- +----------------------------------------------------+ | ?????????????????????????????????????????????????? | | ?????????????????????????????????????????????????? | | ?????????????????????????????????????????????????? | | ?????????????????????????????????????????????????? | | ?????????????????????????????????????????????????? | | ?????????????????????????????????????????????????? | | ?????????????????????????????????????????????????? | | ?????????????????????????????????????????????????? | | ?????????????????????????????????????????????????? | | ?????????????????????????????????????????????????? | | ?????????????????????????????????????????????????? | | ?????????????????????????????????????????????????? | | ?????????????????????????????????????????????????? | | ?????????????????????????????????????????????????? | | ?????????????????????????????????????????????????? | | ??????????????????????###????????????????????????? | | ?????????????????????? ????????????????????????? | | ?????????????????????? ????????????????????????? | | ?????????????????????? ????????????????????????? | | ?????????????????????? ????????????????????????? | | ??????????????????????#/##########???????????????? | | ??????????????????????# # k #???????????????? | | ??????????????????????#k# k """ #???????????????? | | ????????????????####### # """ #???????????????? | | ????????? b """ #???????????????? | | ????????????????####+##%#@ """ #???????????????? | | ??????????????????????# # """ +???????????????? | | ??????????????????????# # #???????????????? | | ????###???????????????# # #???????????????? | | ???? ###########?????# # Y #???????????????? | | ???? # #?????# ##/#######???????????????? | | ???? # """" #?????# #?????????????????????? | | ???? # "??" #?????# #?????????????????????? | | ????" # "??" #?????# #?????????????????????? | | ????" # "??" #?????# #?????????????????????? | | "???" # "??" #?????# ###########???????????? | | """" + """" #?????# + """ #???????????? | | # #?????# # """ #???????????? | | ## # +######+##+####### # """ #???????????? | | % # #???????????? | | + " " #???????????? | | # "G" #???????????? | | ## ######################## """ ????????????? | | ########????????????????????? #???????????? | | ?????????????????????????????#### ####???????????? | | ?????????????????????????????????????????????????? | | | | | | | | | +----------------------------------------------------+ Best States ------------- Heat Dissipation 45 Energy Generation 14 Energy Capacity 250 Matter Stores 300 Matter Capacity 300 Sight Range 16 Terrain Scan Density 10 Armor Coverage 450 Evasion (%) 55 Recoil Reduction 4 Item Schematics ----------------- None Robot Schematics ------------------ None Fabricated ------------ Nothing Alien Tech Used ----------------- None Achievements -------------- None Challenges ------------ None Game ------ Seed LaserAntimissileCycler Manual? 0 Play Time 00:26:42 Cumulative 16.5 hours Start 2024.04.01 @ 20:42:14 End 2024.04.01 @ 21:07:55 Sessions 1 Manual Loads 0 Difficulty Rogue Special Mode None Game No. 19 Rogue 19 Adventurer 0 Explorer 0 Win Type - Total 0 Types 0/0/0/0/0/0/0/0/0 Lore% 14 Gallery% 19 Achievement% 16 Wizard Run 0 Options --------- Layout 0 ASCII 0 Keyboard 0 Movement Mouse Keybinds 0 Fullscreen 1 Font 24/X11 Map View 76x50 Zoom Use 5% Tactical HUD 0 Map Filters NONE Filters NONE Steam 1 RUN: 240d1f46-e67a-4c01-a8bf-14508b456801